[Event "Titled Tuesday Blitz May 9 Early 2023"]
[White "Gomes, Luiz Alexandre de Souza"]
[Black "Lehtosaari, Mauri"]
[WhiteFideId "2102790"]
[BlackFideId "501999"]
[WhiteElo "2405"]
[BlackElo "2513"]
[Result "0-1"]
[Round "08"]
[TimeControl "180+2"]
[Date "2023.05.09"]
[WhiteClock "0:00:02"]
[BlackClock "0:01:10"]

1. e4 {[%clk 0:03:00]}  d5 {[%clk 0:02:58]} 2. exd5 {[%clk 0:03:01]}  Qxd5 {[%clk 0:02:59]} 3. Nc3 {[%clk 0:03:00]}  Qd8 {[%clk 0:02:58]} 4. Bc4 {[%clk 0:03:00]}  Nf6 {[%clk 0:02:58]} 5. d3 {[%clk 0:03:00]}  Bg4 {[%clk 0:02:55]} 6. f3 {[%clk 0:02:59]}  Bh5 {[%clk 0:02:54]} 7. Qe2 {[%clk 0:03:00]}  Nc6 {[%clk 0:02:53]} 8. Be3 {[%clk 0:03:00]}  Nd4 {[%clk 0:02:49]} 9. Qf2 {[%clk 0:02:58]}  e5 {[%clk 0:02:47]} 10. O-O-O {[%clk 0:02:58]}  Be7 {[%clk 0:02:40]} 11. g4 {[%clk 0:02:58]}  Bg6 {[%clk 0:02:40]} 12. h4 {[%clk 0:02:59]}  h6 {[%clk 0:02:39]} 13. h5 {[%clk 0:02:48]}  Bh7 {[%clk 0:02:39]} 14. Nge2 {[%clk 0:02:48]}  Nxe2+ {[%clk 0:02:25]} 15. Qxe2 {[%clk 0:02:48]}  c6 {[%clk 0:02:15]} 16. Bb3 {[%clk 0:02:39]}  b5 {[%clk 0:02:10]} 17. Rhe1 {[%clk 0:02:29]}  a5 {[%clk 0:02:09]} 18. a4 {[%clk 0:02:28]}  b4 {[%clk 0:02:08]} 19. Ne4 {[%clk 0:02:27]}  Nxe4 {[%clk 0:02:06]} 20. dxe4 {[%clk 0:02:27]}  Qc7 {[%clk 0:02:03]} 21. Qc4 {[%clk 0:02:26]}  O-O {[%clk 0:02:00]} 22. Rg1 {[%clk 0:02:08]}  Rad8 {[%clk 0:01:55]} 23. Rd3 {[%clk 0:01:58]}  Rxd3 {[%clk 0:01:50]} 24. cxd3 {[%clk 0:01:59]}  Kh8 {[%clk 0:01:47]} 25. g5 {[%clk 0:01:57]}  hxg5 {[%clk 0:01:41]} 26. Bxg5 {[%clk 0:01:58]}  Bxg5+ {[%clk 0:01:41]} 27. Rxg5 {[%clk 0:01:59]}  Qe7 {[%clk 0:01:41]} 28. Rg4 {[%clk 0:01:45]}  f5 {[%clk 0:01:38]} 29. Rg2 {[%clk 0:01:20]}  Bg8 {[%clk 0:01:29]} 30. Qc2 {[%clk 0:01:19]}  Bxb3 {[%clk 0:01:29]} 31. Qxb3 {[%clk 0:01:19]}  fxe4 {[%clk 0:01:29]} 32. fxe4 {[%clk 0:01:19]}  Rf1+ {[%clk 0:01:26]} 33. Kd2 {[%clk 0:01:18]}  Qf6 {[%clk 0:01:11]} 34. Qc4 {[%clk 0:00:02]}  Qf4+ {[%clk 0:01:10]} 0-1


[Site "https://www.chess.com"]

[Event "Titled Tuesday Blitz May 9 Early 2023"]
[White "ArrestingPieces"]
[Black "Namitbir Singh Walia"]
[BlackFideId "35071068"]
[WhiteElo "2399"]
[BlackElo "2239"]
[Result "0-1"]
[Round "08"]
[TimeControl "180+2"]
[Date "2023.05.09"]
[WhiteClock "0:00:12"]
[BlackClock "0:00:05"]

1. e4 {[%clk 0:03:00]}  c5 {[%clk 0:02:22]} 2. c3 {[%clk 0:03:00]}  d5 {[%clk 0:02:21]} 3. exd5 {[%clk 0:03:00]}  Qxd5 {[%clk 0:02:22]} 4. d4 {[%clk 0:03:01]}  Nc6 {[%clk 0:02:08]} 5. Nf3 {[%clk 0:03:00]}  Nf6 {[%clk 0:01:57]} 6. Be3 {[%clk 0:02:50]}  cxd4 {[%clk 0:01:55]} 7. cxd4 {[%clk 0:02:50]}  e6 {[%clk 0:01:39]} 8. Nc3 {[%clk 0:02:49]}  Qa5 {[%clk 0:01:33]} 9. Bd3 {[%clk 0:02:44]}  Nd5 {[%clk 0:01:14]} 10. O-O {[%clk 0:02:39]}  Nxe3 {[%clk 0:01:01]} 11. fxe3 {[%clk 0:02:38]}  Be7 {[%clk 0:01:02]} 12. Kh1 {[%clk 0:02:36]}  O-O {[%clk 0:01:00]} 13. e4 {[%clk 0:02:32]}  Qh5 {[%clk 0:00:43]} 14. e5 {[%clk 0:02:31]}  b6 {[%clk 0:00:41]} 15. Be4 {[%clk 0:01:37]}  Bb7 {[%clk 0:00:41]} 16. Qe2 {[%clk 0:01:33]}  Rad8 {[%clk 0:00:32]} 17. Rad1 {[%clk 0:01:33]}  Ba8 {[%clk 0:00:23]} 18. h3 {[%clk 0:01:30]}  Nb4 {[%clk 0:00:14]} 19. Bxa8 {[%clk 0:01:28]}  Rxa8 {[%clk 0:00:15]} 20. d5 {[%clk 0:01:19]}  exd5 {[%clk 0:00:15]} 21. Nxd5 {[%clk 0:01:19]}  Nxd5 {[%clk 0:00:16]} 22. Rxd5 {[%clk 0:01:20]}  Rfd8 {[%clk 0:00:16]} 23. Rfd1 {[%clk 0:01:19]}  Qf5 {[%clk 0:00:12]} 24. Qb5 {[%clk 0:01:09]}  Rxd5 {[%clk 0:00:12]} 25. Qxd5 {[%clk 0:01:10]}  Rf8 {[%clk 0:00:09]} 26. a3 {[%clk 0:01:07]}  h6 {[%clk 0:00:09]} 27. b4 {[%clk 0:01:07]}  Rd8 {[%clk 0:00:09]} 28. Qb3 {[%clk 0:00:56]}  Rxd1+ {[%clk 0:00:08]} 29. Qxd1 {[%clk 0:00:57]}  Qe6 {[%clk 0:00:09]} 30. Qd3 {[%clk 0:00:53]}  Bf8 {[%clk 0:00:07]} 31. Qa6 {[%clk 0:00:52]}  Qd7 {[%clk 0:00:06]} 32. Qc4 {[%clk 0:00:52]}  g6 {[%clk 0:00:06]} 33. Nd4 {[%clk 0:00:40]}  Bg7 {[%clk 0:00:05]} 34. Nc6 {[%clk 0:00:41]}  Qd1+ {[%clk 0:00:04]} 35. Kh2 {[%clk 0:00:41]}  Qe1 {[%clk 0:00:05]} 36. Qd4 {[%clk 0:00:35]}  Kh7 {[%clk 0:00:04]} 37. a4 {[%clk 0:00:33]}  Qe2 {[%clk 0:00:04]} 38. b5 {[%clk 0:00:33]}  Qa2 {[%clk 0:00:04]} 39. Nd8 {[%clk 0:00:29]}  Qe2 {[%clk 0:00:04]} 40. Nxf7 {[%clk 0:00:29]}  Kg8 {[%clk 0:00:03]} 41. Qd5 {[%clk 0:00:28]}  Kh7 {[%clk 0:00:04]} 42. e6 {[%clk 0:00:27]}  Bf6 {[%clk 0:00:03]} 43. Nd6 {[%clk 0:00:24]}  Be5+ {[%clk 0:00:03]} 44. Qxe5 {[%clk 0:00:14]}  Qxe5+ {[%clk 0:00:04]} 45. g3 {[%clk 0:00:12]}  Qxd6 {[%clk 0:00:05]} 0-1


[Site "https://www.chess.com"]

[Event "Titled Tuesday Blitz May 9 Early 2023"]
[White "Baghdasaryan, Vahe"]
[Black "Gatterer, Florian"]
[WhiteFideId "13303139"]
[BlackFideId "811688"]
[WhiteElo "2216"]
[BlackElo "2221"]
[Result "1-0"]
[Round "08"]
[TimeControl "180+2"]
[Date "2023.05.09"]
[WhiteClock "0:00:30"]
[BlackClock "0:00:00"]

1. e4 {[%clk 0:02:54]}  c5 {[%clk 0:03:00]} 2. Nf3 {[%clk 0:02:53]}  e6 {[%clk 0:03:00]} 3. d4 {[%clk 0:02:52]}  cxd4 {[%clk 0:03:01]} 4. Nxd4 {[%clk 0:02:52]}  Nf6 {[%clk 0:03:01]} 5. Nc3 {[%clk 0:02:53]}  Nc6 {[%clk 0:03:01]} 6. Ndb5 {[%clk 0:02:51]}  Bc5 {[%clk 0:03:01]} 7. Nd6+ {[%clk 0:02:44]}  Ke7 {[%clk 0:03:00]} 8. Bf4 {[%clk 0:02:45]}  e5 {[%clk 0:03:00]} 9. Nf5+ {[%clk 0:02:45]}  Kf8 {[%clk 0:03:00]} 10. Bg5 {[%clk 0:02:44]}  Bb4 {[%clk 0:03:00]} 11. Bc4 {[%clk 0:02:33]}  d5 {[%clk 0:02:59]} 12. Bxd5 {[%clk 0:02:31]}  Bxf5 {[%clk 0:02:46]} 13. Bxf6 {[%clk 0:02:22]}  Qxf6 {[%clk 0:02:38]} 14. exf5 {[%clk 0:02:21]}  Rd8 {[%clk 0:02:35]} 15. Qf3 {[%clk 0:00:46]}  e4 {[%clk 0:02:05]} 16. Bxe4 {[%clk 0:00:46]}  Nd4 {[%clk 0:01:23]} 17. Qe3 {[%clk 0:00:44]}  Nxf5 {[%clk 0:01:00]} 18. Bxf5 {[%clk 0:00:42]}  Bxc3+ {[%clk 0:00:57]} 19. bxc3 {[%clk 0:00:42]}  Qxf5 {[%clk 0:00:57]} 20. O-O {[%clk 0:00:41]}  g6 {[%clk 0:00:37]} 21. Qh6+ {[%clk 0:00:39]}  Ke7 {[%clk 0:00:30]} 22. Rfe1+ {[%clk 0:00:34]}  Kf6 {[%clk 0:00:30]} 23. Re3 {[%clk 0:00:34]}  Qxc2 {[%clk 0:00:19]} 24. Rae1 {[%clk 0:00:32]}  Rd5 {[%clk 0:00:13]} 25. g4 {[%clk 0:00:32]}  Rhd8 {[%clk 0:00:00]} 26. Rf3+ {[%clk 0:00:30]} 1-0


[Site "https://www.chess.com"]

[Event "Titled Tuesday Blitz May 9 Early 2023"]
[White "Kirillov, Dmitry"]
[Black "Chernomordik, Pavel"]
[WhiteFideId "34180572"]
[BlackFideId "2804530"]
[WhiteElo "2161"]
[BlackElo "2193"]
[Result "0-1"]
[Round "08"]
[TimeControl "180+2"]
[Date "2023.05.09"]
[WhiteClock "0:00:00"]
[BlackClock "0:01:06"]

1. e4 {[%clk 0:03:00]}  g6 {[%clk 0:02:59]} 2. d4 {[%clk 0:03:00]}  Bg7 {[%clk 0:02:59]} 3. Nf3 {[%clk 0:03:01]}  d6 {[%clk 0:02:59]} 4. Nc3 {[%clk 0:03:01]}  a6 {[%clk 0:02:59]} 5. a4 {[%clk 0:03:01]}  b6 {[%clk 0:02:58]} 6. Bc4 {[%clk 0:02:53]}  e6 {[%clk 0:02:57]} 7. Bf4 {[%clk 0:02:52]}  Bb7 {[%clk 0:02:57]} 8. Qd2 {[%clk 0:02:52]}  Nd7 {[%clk 0:02:56]} 9. O-O {[%clk 0:02:50]}  h6 {[%clk 0:02:47]} 10. Rad1 {[%clk 0:02:49]}  Ne7 {[%clk 0:02:44]} 11. Rfe1 {[%clk 0:02:49]}  g5 {[%clk 0:02:42]} 12. Bg3 {[%clk 0:02:47]}  Ng6 {[%clk 0:02:42]} 13. Qd3 {[%clk 0:02:16]}  g4 {[%clk 0:02:37]} 14. Nd2 {[%clk 0:02:13]}  h5 {[%clk 0:02:36]} 15. e5 {[%clk 0:01:23]}  d5 {[%clk 0:02:27]} 16. Bxd5 {[%clk 0:01:07]}  Bxd5 {[%clk 0:02:16]} 17. Nxd5 {[%clk 0:01:06]}  exd5 {[%clk 0:02:15]} 18. e6 {[%clk 0:01:07]}  Nf6 {[%clk 0:02:13]} 19. exf7+ {[%clk 0:00:58]}  Kxf7 {[%clk 0:02:13]} 20. c4 {[%clk 0:00:43]}  c6 {[%clk 0:02:06]} 21. h3 {[%clk 0:00:38]}  Qd7 {[%clk 0:01:55]} 22. Be5 {[%clk 0:00:36]}  Rae8 {[%clk 0:01:48]} 23. f4 {[%clk 0:00:33]}  gxh3 {[%clk 0:01:39]} 24. gxh3 {[%clk 0:00:31]}  Nh4 {[%clk 0:01:39]} 25. Kh2 {[%clk 0:00:22]}  Qf5 {[%clk 0:01:35]} 26. Qg3 {[%clk 0:00:18]}  Ng6 {[%clk 0:01:34]} 27. Rg1 {[%clk 0:00:18]}  Bh6 {[%clk 0:01:28]} 28. Rdf1 {[%clk 0:00:14]}  h4 {[%clk 0:01:24]} 29. Qg2 {[%clk 0:00:13]}  Nh5 {[%clk 0:01:15]} 30. cxd5 {[%clk 0:00:06]}  Ngxf4 {[%clk 0:01:11]} 31. Bxf4 {[%clk 0:00:03]}  Bxf4+ {[%clk 0:01:07]} 32. Kh1 {[%clk 0:00:00]}  Ng3+ {[%clk 0:01:06]} 0-1


[Site "https://www.chess.com"]

[Event "Titled Tuesday Blitz May 9 Early 2023"]
[White "Shvedova, Alexandra"]
[Black "Kalajzic, Ivan"]
[WhiteFideId "54154782"]
[BlackFideId "14506378"]
[WhiteElo "1973"]
[BlackElo "2203"]
[Result "1-0"]
[Round "08"]
[TimeControl "180+2"]
[Date "2023.05.09"]
[WhiteClock "0:00:20"]
[BlackClock "0:00:17"]

1. d4 {[%clk 0:03:00]}  Nc6 {[%clk 0:02:59]} 2. c4 {[%clk 0:03:01]}  e5 {[%clk 0:02:58]} 3. dxe5 {[%clk 0:02:57]}  Nxe5 {[%clk 0:02:58]} 4. e4 {[%clk 0:02:54]}  Bc5 {[%clk 0:02:57]} 5. Nc3 {[%clk 0:02:44]}  d6 {[%clk 0:02:55]} 6. Bf4 {[%clk 0:02:29]}  Ng6 {[%clk 0:02:50]} 7. Bg3 {[%clk 0:02:27]}  Bd7 {[%clk 0:02:50]} 8. Nf3 {[%clk 0:02:25]}  Nf6 {[%clk 0:02:49]} 9. Qd2 {[%clk 0:02:21]}  O-O {[%clk 0:02:48]} 10. Be2 {[%clk 0:02:18]}  Re8 {[%clk 0:02:48]} 11. Qc2 {[%clk 0:02:07]}  Nxe4 {[%clk 0:02:39]} 12. Nxe4 {[%clk 0:02:06]}  Bf5 {[%clk 0:02:39]} 13. Nfd2 {[%clk 0:02:04]}  Bxe4 {[%clk 0:02:32]} 14. Nxe4 {[%clk 0:02:02]}  Bb4+ {[%clk 0:02:32]} 15. Nc3 {[%clk 0:01:41]}  f5 {[%clk 0:02:25]} 16. f3 {[%clk 0:01:33]}  f4 {[%clk 0:02:11]} 17. Bf2 {[%clk 0:01:31]}  Qg5 {[%clk 0:02:12]} 18. O-O {[%clk 0:01:25]}  Nh4 {[%clk 0:01:59]} 19. Bxh4 {[%clk 0:01:24]}  Qxh4 {[%clk 0:02:00]} 20. Ne4 {[%clk 0:01:21]}  Re5 {[%clk 0:01:46]} 21. Bd3 {[%clk 0:01:19]}  Rae8 {[%clk 0:01:43]} 22. g3 {[%clk 0:01:11]}  Qh3 {[%clk 0:01:32]} 23. Qg2 {[%clk 0:01:09]}  Qh6 {[%clk 0:01:27]} 24. Rac1 {[%clk 0:00:54]}  fxg3 {[%clk 0:01:14]} 25. hxg3 {[%clk 0:00:53]}  Rh5 {[%clk 0:01:07]} 26. a3 {[%clk 0:00:51]}  Ba5 {[%clk 0:01:01]} 27. b4 {[%clk 0:00:51]}  Bb6+ {[%clk 0:01:00]} 28. c5 {[%clk 0:00:52]}  dxc5 {[%clk 0:00:59]} 29. bxc5 {[%clk 0:00:53]}  Ba5 {[%clk 0:00:59]} 30. Bc4+ {[%clk 0:00:40]}  Kh8 {[%clk 0:00:58]} 31. Rcd1 {[%clk 0:00:40]}  b5 {[%clk 0:00:38]} 32. Bf7 {[%clk 0:00:39]}  Rf8 {[%clk 0:00:36]} 33. Bxh5 {[%clk 0:00:39]}  Qxh5 {[%clk 0:00:37]} 34. Qh2 {[%clk 0:00:28]}  Qg6 {[%clk 0:00:33]} 35. Qh4 {[%clk 0:00:26]}  h6 {[%clk 0:00:27]} 36. Rd8 {[%clk 0:00:23]}  Rxd8 {[%clk 0:00:27]} 37. Qxd8+ {[%clk 0:00:24]}  Kh7 {[%clk 0:00:28]} 38. Qd3 {[%clk 0:00:23]}  b4 {[%clk 0:00:26]} 39. axb4 {[%clk 0:00:22]}  Bxb4 {[%clk 0:00:27]} 40. Kg2 {[%clk 0:00:22]}  a5 {[%clk 0:00:27]} 41. Rh1 {[%clk 0:00:20]}  Kh8 {[%clk 0:00:23]} 42. Qd8+ {[%clk 0:00:19]}  Kh7 {[%clk 0:00:22]} 43. Ng5+ {[%clk 0:00:19]}  Qxg5 {[%clk 0:00:20]} 44. Qxg5 {[%clk 0:00:20]}  a4 {[%clk 0:00:19]} 45. Qf5+ {[%clk 0:00:20]}  Kg8 {[%clk 0:00:17]} 46. Rd1 {[%clk 0:00:20]} 1-0


[Site "https://www.chess.com"]

[Event "Titled Tuesday Blitz May 9 Early 2023"]
[White "Pourkashiyan, Atousa"]
[Black "Avalos Parra, Joao"]
[WhiteFideId "12502014"]
[BlackFideId "3402541"]
[WhiteElo "2228"]
[BlackElo "2173"]
[Result "0-1"]
[Round "08"]
[TimeControl "180+2"]
[Date "2023.05.09"]
[WhiteClock "0:00:04"]
[BlackClock "0:00:33"]

1. e4 {[%clk 0:03:00]}  e5 {[%clk 0:03:00]} 2. Nf3 {[%clk 0:03:01]}  Nc6 {[%clk 0:03:00]} 3. Bb5 {[%clk 0:03:00]}  a6 {[%clk 0:03:00]} 4. Ba4 {[%clk 0:03:00]}  Nf6 {[%clk 0:03:01]} 5. O-O {[%clk 0:02:59]}  b5 {[%clk 0:03:01]} 6. Bb3 {[%clk 0:02:56]}  Bc5 {[%clk 0:03:02]} 7. c3 {[%clk 0:02:51]}  d6 {[%clk 0:02:59]} 8. d4 {[%clk 0:02:48]}  Bb6 {[%clk 0:02:56]} 9. h3 {[%clk 0:02:40]}  Bb7 {[%clk 0:02:53]} 10. Re1 {[%clk 0:02:22]}  Ne7 {[%clk 0:02:51]} 11. Nbd2 {[%clk 0:01:38]}  Ng6 {[%clk 0:02:43]} 12. Bc2 {[%clk 0:01:26]}  c5 {[%clk 0:02:43]} 13. d5 {[%clk 0:01:21]}  c4 {[%clk 0:02:43]} 14. Nf1 {[%clk 0:01:20]}  O-O {[%clk 0:02:42]} 15. Ng3 {[%clk 0:01:15]}  Bc8 {[%clk 0:02:38]} 16. a4 {[%clk 0:01:04]}  Bd7 {[%clk 0:02:32]} 17. Be3 {[%clk 0:00:39]}  Bxe3 {[%clk 0:02:25]} 18. fxe3 {[%clk 0:00:39]}  Qb6 {[%clk 0:02:23]} 19. Kh2 {[%clk 0:00:36]}  b4 {[%clk 0:02:17]} 20. Nf5 {[%clk 0:00:35]}  a5 {[%clk 0:02:08]} 21. Nd2 {[%clk 0:00:21]}  Rac8 {[%clk 0:02:04]} 22. Qf3 {[%clk 0:00:20]}  Bxf5 {[%clk 0:01:51]} 23. exf5 {[%clk 0:00:20]}  Ne7 {[%clk 0:01:48]} 24. e4 {[%clk 0:00:19]}  bxc3 {[%clk 0:01:41]} 25. bxc3 {[%clk 0:00:20]}  Qb2 {[%clk 0:01:41]} 26. Rac1 {[%clk 0:00:20]}  Rc7 {[%clk 0:01:33]} 27. Nf1 {[%clk 0:00:19]}  Rb8 {[%clk 0:01:32]} 28. Ne3 {[%clk 0:00:19]}  Qxc3 {[%clk 0:01:28]} 29. Qe2 {[%clk 0:00:15]}  Rb2 {[%clk 0:01:26]} 30. g4 {[%clk 0:00:14]}  Nxe4 {[%clk 0:01:24]} 31. g5 {[%clk 0:00:10]}  Nxd5 {[%clk 0:01:08]} 32. f6 {[%clk 0:00:07]}  Nxe3 {[%clk 0:01:01]} 33. Kg1 {[%clk 0:00:06]}  Nxc2 {[%clk 0:00:47]} 34. Qxe4 {[%clk 0:00:06]}  Qg3+ {[%clk 0:00:46]} 35. Kf1 {[%clk 0:00:06]}  Ne3+ {[%clk 0:00:33]} 36. Qxe3 {[%clk 0:00:04]}  Qg2# {[%clk 0:00:33]} 0-1


[Site "https://www.chess.com"]

[Event "Titled Tuesday Blitz May 9 Early 2023"]
[White "Rian, Kapriaga"]
[Black "Degenbaev, Aziz"]
[WhiteFideId "7103263"]
[BlackFideId "13802640"]
[WhiteElo "2327"]
[BlackElo "2152"]
[Result "0-1"]
[Round "08"]
[TimeControl "180+2"]
[Date "2023.05.09"]
[WhiteClock "0:00:00"]
[BlackClock "0:01:45"]

1. d4 {[%clk 0:03:00]}  Nf6 {[%clk 0:02:59]} 2. Nf3 {[%clk 0:03:00]}  g6 {[%clk 0:03:00]} 3. Bg5 {[%clk 0:02:58]}  Bg7 {[%clk 0:03:00]} 4. Nbd2 {[%clk 0:02:58]}  h6 {[%clk 0:02:58]} 5. Bh4 {[%clk 0:02:55]}  d6 {[%clk 0:02:58]} 6. e4 {[%clk 0:02:55]}  Nh5 {[%clk 0:02:58]} 7. Be2 {[%clk 0:02:51]}  c5 {[%clk 0:02:58]} 8. c3 {[%clk 0:02:49]}  cxd4 {[%clk 0:02:52]} 9. Nxd4 {[%clk 0:02:41]}  Nf4 {[%clk 0:02:51]} 10. O-O {[%clk 0:02:36]}  Nxe2+ {[%clk 0:02:48]} 11. Qxe2 {[%clk 0:02:35]}  O-O {[%clk 0:02:48]} 12. Bg3 {[%clk 0:02:12]}  Nc6 {[%clk 0:02:44]} 13. Nxc6 {[%clk 0:02:06]}  bxc6 {[%clk 0:02:44]} 14. f3 {[%clk 0:02:02]}  Qb6+ {[%clk 0:02:41]} 15. Kh1 {[%clk 0:01:52]}  Qxb2 {[%clk 0:02:40]} 16. Rab1 {[%clk 0:01:38]}  Qxa2 {[%clk 0:02:31]} 17. Rfc1 {[%clk 0:01:33]}  a5 {[%clk 0:02:22]} 18. Qd3 {[%clk 0:01:32]}  Ba6 {[%clk 0:02:21]} 19. c4 {[%clk 0:01:22]}  Rab8 {[%clk 0:02:19]} 20. h4 {[%clk 0:00:58]}  Rb2 {[%clk 0:02:07]} 21. Rxb2 {[%clk 0:00:38]}  Qxb2 {[%clk 0:02:08]} 22. Rc2 {[%clk 0:00:38]}  Qd4 {[%clk 0:01:57]} 23. Qb3 {[%clk 0:00:32]}  h5 {[%clk 0:01:52]} 24. Kh2 {[%clk 0:00:22]}  Bh6 {[%clk 0:01:50]} 25. Nf1 {[%clk 0:00:16]}  Qd1 {[%clk 0:01:46]} 26. Rf2 {[%clk 0:00:00]}  Qxb3 {[%clk 0:01:45]} 0-1


[Site "https://www.chess.com"]

[Event "Titled Tuesday Blitz May 9 Early 2023"]
[White "Devaev, Alexander"]
[Black "Wimalasuriya, Kasun M."]
[WhiteFideId "4169395"]
[BlackFideId "9906789"]
[WhiteElo "2172"]
[BlackElo "2244"]
[Result "1-0"]
[Round "08"]
[TimeControl "180+2"]
[Date "2023.05.09"]
[WhiteClock "0:00:13"]
[BlackClock "0:00:50"]

1. Nf3 {[%clk 0:02:11]}  Nf6 {[%clk 0:02:50]} 2. c4 {[%clk 0:02:07]}  g6 {[%clk 0:02:50]} 3. Nc3 {[%clk 0:02:08]}  Bg7 {[%clk 0:02:50]} 4. e4 {[%clk 0:02:09]}  d6 {[%clk 0:02:50]} 5. d4 {[%clk 0:02:09]}  O-O {[%clk 0:02:50]} 6. h3 {[%clk 0:02:10]}  Nfd7 {[%clk 0:02:42]} 7. Bg5 {[%clk 0:02:07]}  Nc6 {[%clk 0:02:42]} 8. Be2 {[%clk 0:02:02]}  f6 {[%clk 0:02:40]} 9. Be3 {[%clk 0:02:01]}  e5 {[%clk 0:02:40]} 10. d5 {[%clk 0:02:02]}  Ne7 {[%clk 0:02:40]} 11. g4 {[%clk 0:02:02]}  Nc5 {[%clk 0:02:38]} 12. Rg1 {[%clk 0:02:01]}  a5 {[%clk 0:02:36]} 13. h4 {[%clk 0:01:59]}  b6 {[%clk 0:02:36]} 14. h5 {[%clk 0:01:59]}  Kf7 {[%clk 0:02:24]} 15. Nh4 {[%clk 0:01:41]}  g5 {[%clk 0:02:18]} 16. Nf3 {[%clk 0:01:33]}  h6 {[%clk 0:02:17]} 17. Nd2 {[%clk 0:01:33]}  Kg8 {[%clk 0:02:10]} 18. f3 {[%clk 0:01:34]}  c6 {[%clk 0:02:01]} 19. Kf2 {[%clk 0:01:30]}  cxd5 {[%clk 0:02:01]} 20. cxd5 {[%clk 0:01:31]}  Bd7 {[%clk 0:01:52]} 21. Qf1 {[%clk 0:01:29]}  Nc8 {[%clk 0:01:52]} 22. Bb5 {[%clk 0:01:29]}  Na7 {[%clk 0:01:50]} 23. Bxd7 {[%clk 0:01:28]}  Qxd7 {[%clk 0:01:50]} 24. Nc4 {[%clk 0:01:27]}  Rab8 {[%clk 0:01:49]} 25. Na3 {[%clk 0:01:27]}  Rfc8 {[%clk 0:01:49]} 26. Ncb5 {[%clk 0:01:10]}  Nxb5 {[%clk 0:01:44]} 27. Qxb5 {[%clk 0:01:10]}  Qxb5 {[%clk 0:01:37]} 28. Nxb5 {[%clk 0:01:11]}  Nd3+ {[%clk 0:01:37]} 29. Kg3 {[%clk 0:01:11]}  Bf8 {[%clk 0:01:36]} 30. Rg2 {[%clk 0:01:04]}  Rc4 {[%clk 0:01:29]} 31. Rd1 {[%clk 0:00:56]}  Nf4 {[%clk 0:01:17]} 32. Rgd2 {[%clk 0:00:53]}  a4 {[%clk 0:01:13]} 33. Bxf4 {[%clk 0:00:39]}  gxf4+ {[%clk 0:01:11]} 34. Kf2 {[%clk 0:00:40]}  Rbc8 {[%clk 0:01:10]} 35. Ke2 {[%clk 0:00:26]}  R8c5 {[%clk 0:01:08]} 36. Na3 {[%clk 0:00:27]}  Rb4 {[%clk 0:01:01]} 37. Kd3 {[%clk 0:00:15]}  Rd4+ {[%clk 0:01:01]} 38. Ke2 {[%clk 0:00:16]}  Rxd2+ {[%clk 0:01:01]} 39. Kxd2 {[%clk 0:00:15]}  b5 {[%clk 0:00:59]} 40. Rc1 {[%clk 0:00:13]}  b4 {[%clk 0:00:59]} 41. Rxc5 {[%clk 0:00:11]}  dxc5 {[%clk 0:01:00]} 42. Nc4 {[%clk 0:00:08]}  Kf7 {[%clk 0:01:00]} 43. a3 {[%clk 0:00:09]}  Ke8 {[%clk 0:00:59]} 44. Kd3 {[%clk 0:00:08]}  Kd7 {[%clk 0:00:59]} 45. Nb6+ {[%clk 0:00:08]}  Kc7 {[%clk 0:00:59]} 46. Nxa4 {[%clk 0:00:08]}  bxa3 {[%clk 0:00:57]} 47. bxa3 {[%clk 0:00:08]}  c4+ {[%clk 0:00:58]} 48. Kxc4 {[%clk 0:00:09]}  Bxa3 {[%clk 0:00:58]} 49. Nc5 {[%clk 0:00:10]}  Kd6 {[%clk 0:00:57]} 50. Ne6 {[%clk 0:00:09]}  Bc1 {[%clk 0:00:56]} 51. Ng7 {[%clk 0:00:09]}  Bd2 {[%clk 0:00:51]} 52. Nf5+ {[%clk 0:00:10]}  Kd7 {[%clk 0:00:50]} 53. Nxh6 {[%clk 0:00:11]}  Be1 {[%clk 0:00:51]} 54. Nf5 {[%clk 0:00:11]}  Bh4 {[%clk 0:00:51]} 55. h6 {[%clk 0:00:12]}  Bg5 {[%clk 0:00:50]} 56. h7 {[%clk 0:00:13]} 1-0


[Site "https://www.chess.com"]

[Event "Titled Tuesday Blitz May 9 Early 2023"]
[White "Srihari L R"]
[Black "Tuleyeva-Aketayeva, Dana"]
[WhiteFideId "46617116"]
[BlackFideId "13701932"]
[WhiteElo "2334"]
[BlackElo "2030"]
[Result "1-0"]
[Round "08"]
[TimeControl "180+2"]
[Date "2023.05.09"]
[WhiteClock "0:00:37"]
[BlackClock "0:00:00"]

1. Nf3 {[%clk 0:03:00]}  Nf6 {[%clk 0:02:59]} 2. c4 {[%clk 0:03:01]}  c5 {[%clk 0:02:59]} 3. b3 {[%clk 0:03:02]}  g6 {[%clk 0:02:58]} 4. Bb2 {[%clk 0:03:02]}  Bg7 {[%clk 0:02:59]} 5. g3 {[%clk 0:03:03]}  O-O {[%clk 0:02:59]} 6. Bg2 {[%clk 0:03:04]}  e6 {[%clk 0:02:59]} 7. O-O {[%clk 0:03:04]}  d5 {[%clk 0:03:00]} 8. cxd5 {[%clk 0:03:05]}  exd5 {[%clk 0:03:01]} 9. d4 {[%clk 0:03:05]}  Ne4 {[%clk 0:02:57]} 10. Nbd2 {[%clk 0:03:00]}  Nc6 {[%clk 0:02:55]} 11. e3 {[%clk 0:02:57]}  cxd4 {[%clk 0:02:54]} 12. Nxd4 {[%clk 0:02:52]}  Nxd4 {[%clk 0:02:54]} 13. exd4 {[%clk 0:02:50]}  Bf5 {[%clk 0:02:46]} 14. Re1 {[%clk 0:02:42]}  Re8 {[%clk 0:02:44]} 15. g4 {[%clk 0:02:39]}  Nxd2 {[%clk 0:02:35]} 16. Rxe8+ {[%clk 0:02:36]}  Qxe8 {[%clk 0:02:35]} 17. gxf5 {[%clk 0:02:37]}  Ne4 {[%clk 0:02:30]} 18. fxg6 {[%clk 0:02:33]}  hxg6 {[%clk 0:02:30]} 19. Rc1 {[%clk 0:02:32]}  Rc8 {[%clk 0:02:27]} 20. Qd3 {[%clk 0:01:30]}  Rxc1+ {[%clk 0:02:18]} 21. Bxc1 {[%clk 0:01:31]}  Qc6 {[%clk 0:02:14]} 22. Be3 {[%clk 0:01:30]}  f5 {[%clk 0:02:01]} 23. Bf1 {[%clk 0:01:22]}  a6 {[%clk 0:01:11]} 24. a4 {[%clk 0:01:20]}  Qc7 {[%clk 0:00:48]} 25. f3 {[%clk 0:01:14]}  Nf6 {[%clk 0:00:34]} 26. b4 {[%clk 0:01:11]}  Bf8 {[%clk 0:00:13]} 27. b5 {[%clk 0:01:08]}  a5 {[%clk 0:00:14]} 28. Qb3 {[%clk 0:01:06]}  Kg7 {[%clk 0:00:12]} 29. Qb2 {[%clk 0:00:59]}  Bd6 {[%clk 0:00:11]} 30. b6 {[%clk 0:00:51]}  Qe7 {[%clk 0:00:11]} 31. Bf2 {[%clk 0:00:46]}  Bb8 {[%clk 0:00:10]} 32. Qb5 {[%clk 0:00:39]}  f4 {[%clk 0:00:06]} 33. Qxa5 {[%clk 0:00:37]}  Nh5 {[%clk 0:00:04]} 34. Qxd5 {[%clk 0:00:38]}  Kh7 {[%clk 0:00:00]} 35. a5 {[%clk 0:00:37]} 1-0


[Site "https://www.chess.com"]